fUSD/lending_fUSD_20240415
["ID","MTS","AMOUNT","RATE_DAILY","PERIOD"]
[322671928,1713202250508,-500.0,0.00019998,2]
[322671929,1713202250518,-3765.66,0.00019998,2]
[322671930,1713202250529,-12520.12,0.00019998,2]
[322671931,1713202250540,-554.4,0.00019998,2]
[322671932,1713202250551,-500.0,0.00019998,2]
[322671933,1713202250562,-1057.81,0.00019998,2]
[322671934,1713202250573,-554.4,0.00019998,2]
[322671935,1713202250583,-3765.66,0.00019998,2]
[322671936,1713202250594,-12520.12,0.00019998,2]
[322671937,1713202250604,-1058.02,0.00019998,2]
[322671938,1713202250615,-500.0,0.00019998,2]
[322671939,1713202250626,-554.4,0.00019998,2]
[322671940,1713202250636,-3765.66,0.00019998,2]
[322671941,1713202250646,-12520.12,0.00019998,2]
[322671942,1713202250657,-500.0,0.00019998,2]
[322671943,1713202250668,-554.4,0.00019998,2]
[322671944,1713202250680,-3765.8668425,0.00019998,2]
[322671945,1713202250695,-12520.12,0.00019998,2]
[322671946,1713202250707,-500.0,0.00019998,2]
[322671947,1713202250719,-554.4,0.00019998,2]
[322671948,1713202250730,-12520.12,0.00019998,2]
[322671949,1713202250740,-500.0,0.00019998,2]
[322671950,1713202250750,-554.4,0.00019998,2]
[322671951,1713202250762,-500.0,0.00019998,2]
[322671952,1713202250771,-12520.20338693,0.00019998,2]
[322671953,1713202250783,-554.4,0.00019998,2]
[322671954,1713202250794,-500.0,0.00019998,2]
[322671955,1713202250804,-554.4,0.00019998,2]
[322671956,1713202250815,-554.4,0.00019998,2]
[322671957,1713202250826,-554.4,0.00019998,2]
[322671958,1713202250836,-154.45481226,0.00019998,2]
[322671959,1713202250847,-1477.98,0.00019998,2]
[322671960,1713202250858,-554.46432786,0.00019998,2]
[322671961,1713202250869,-1477.98,0.00019998,2]
[322671962,1713202250880,-1477.98,0.00019998,2]
[322671963,1713202250891,-1477.98,0.00019998,2]
[322671964,1713202250904,-1477.98,0.00019998,2]
[322671965,1713202250916,-1477.98,0.00019998,2]
[322671966,1713202250927,-1477.98,0.00019998,2]
[322671967,1713202250948,-1477.98,0.00019998,2]
[322671968,1713202250960,-1477.98,0.00019998,2]
[322671969,1713202250970,-1477.98,0.00019998,2]
[322671970,1713202250981,-1477.98,0.00019998,2]
[322671971,1713202250992,-1477.98,0.00019998,2]
[322671972,1713202251003,-1477.98,0.00019998,2]
[322671973,1713202251014,-500.0,0.00019998,2]
[322671974,1713202251025,-1477.98,0.00019998,2]
[322671975,1713202251037,-500.0,0.00019998,2]
[322671976,1713202251048,-1478.07022334,0.00019998,2]
[322671977,1713202251059,-495.0,0.00019998,2]
[322671978,1713202251070,-7470.14,0.00019998,2]
[322671979,1713202251081,-7470.14,0.00019998,2]
[322671980,1713202251091,-3813.6,0.00019998,2]
[322671981,1713202251101,-7470.14,0.00019998,2]
[322671982,1713202251112,-3813.6,0.00019998,2]
[322671983,1713202251122,-7470.14,0.00019998,2]
[322671984,1713202251133,-3813.6,0.00019998,2]
[322671985,1713202251143,-7470.14,0.00019998,2]
[322671986,1713202251153,-3813.6,0.00019998,2]
[322671987,1713202251163,-917.08,0.00019998,2]
[322671988,1713202251173,-7470.14,0.00019998,2]
[322671989,1713202251191,-917.08,0.00019998,2]
[322671990,1713202251202,-3813.6,0.00019998,2]
[322671991,1713202251213,-7470.14,0.00019998,2]
[322671992,1713202251223,-917.08,0.00019998,2]
[322671993,1713202251233,-3813.6,0.00019998,2]
[322671994,1713202251243,-7470.14,0.00019998,2]
[322671995,1713202251253,-3813.6,0.00019998,2]
[322671996,1713202251263,-917.08,0.00019998,2]
[322671997,1713202251274,-7470.14,0.00019998,2]
[322671998,1713202251284,-3813.6,0.00019998,2]
[322671999,1713202251295,-917.08,0.00019998,2]
[322672000,1713202251305,-3813.6,0.00019998,2]
[322672001,1713202251316,-7470.14,0.00019998,2]
[322672002,1713202251327,-917.08,0.00019998,2]
[322672003,1713202251337,-7470.14,0.00019998,2]
[322672004,1713202251347,-3813.6,0.00019998,2]
[322672005,1713202251357,-917.08,0.00019998,2]
[322672006,1713202251367,-7470.14,0.00019998,2]
[322672007,1713202251377,-3813.6,0.00019998,2]
[322672008,1713202251387,-917.08,0.00019998,2]
[322672009,1713202251397,-7470.14,0.00019998,2]
[322672010,1713202251407,-3813.6,0.00019998,2]
[322672011,1713202251417,-917.08,0.00019998,2]
[322672012,1713202251426,-7470.14,0.00019998,2]
[322672013,1713202251441,-3813.6,0.00019998,2]
[322672014,1713202251450,-1652.52,0.00019998,2]
[322672015,1713202251460,-3495.43,0.00019998,2]
[322672016,1713202251471,-7470.14384882,0.00019998,2]
[322672017,1713202251482,-3813.6,0.00019998,2]
[322672018,1713202251493,-917.08,0.00019998,2]
[322672019,1713202251504,-1652.52,0.00019998,2]
[322672020,1713202251515,-3495.43,0.00019998,2]
[322672021,1713202251526,-3813.80924829,0.00019998,2]
[322672022,1713202251537,-917.08,0.00019998,2]
[322672023,1713202251548,-1652.52,0.00019998,2]
[322672024,1713202251557,-3495.43,0.00019998,2]
[322672025,1713202251567,-917.08,0.00019998,2]
[322672026,1713202251577,-500.0,0.00019998,2]
[322672027,1713202251587,-1652.52,0.00019998,2]
[322672028,1713202251598,-3495.43,0.00019998,2]
[322672029,1713202251609,-917.08,0.00019998,2]
[322672030,1713202251621,-500.0,0.00019998,2]
[322672031,1713202251633,-3495.43,0.00019998,2]
[322672032,1713202251644,-917.08,0.00019998,2]
[322672033,1713202251655,-500.0,0.00019998,2]
[322672034,1713202251666,-3495.43,0.00019998,2]
[322672035,1713202251676,-1652.52,0.00019998,2]
[322672036,1713202251693,-917.30071279,0.00019998,2]
[322672037,1713202251709,-500.0,0.00019998,2]
[322672038,1713202251720,-3495.43,0.00019998,2]
[322672039,1713202251731,-1652.52,0.00019998,2]
[322672040,1713202251744,-500.0,0.00019998,2]
[322672041,1713202251755,-3495.43,0.00019998,2]
[322672042,1713202251766,-1652.52,0.00019998,2]
[322672043,1713202251777,-584.7829231,0.00019998,2]
[322672044,1713202251789,-243.35736485,0.00019999,2]
[322672045,1713202251799,-10771.79,0.00019999,2]
[322672046,1713202251810,-10771.79,0.00019999,2]
[322672047,1713202251819,-10771.79,0.00019999,2]
[322672048,1713202251829,-10771.79,0.00019999,2]
[322672049,1713202251840,-10771.79,0.00019999,2]
[322672050,1713202251850,-10771.79,0.00019999,2]
[322672051,1713202251861,-10771.79,0.00019999,2]
[322672052,1713202251872,-10771.79,0.00019999,2]
[322672053,1713202251882,-10771.79,0.00019999,2]
[322672054,1713202251893,-10771.79,0.00019999,2]
[322672055,1713202251903,-10771.79,0.00019999,2]
[322672056,1713202251913,-10771.79,0.00019999,2]
[322672057,1713202251924,-10771.79,0.00019999,2]
[322672058,1713202251941,-10771.79,0.00019999,2]
[322672059,1713202251951,-10771.79,0.00019999,2]
[322672060,1713202251962,-10771.79,0.00019999,2]
[322672061,1713202251973,-10771.79,0.00019999,2]
[322672062,1713202251983,-10771.79,0.00019999,2]
[322672063,1713202251993,-10771.79,0.00019999,2]
[322672064,1713202252003,-10771.79,0.00019999,2]
[322672065,1713202252013,-10771.94351623,0.00019999,2]
[322672066,1713202252024,-9975.56,0.00019999,2]
[322672067,1713202252034,-9975.56,0.00019999,2]
[322672068,1713202252044,-9975.56,0.00019999,2]
[322672069,1713202252054,-9975.56,0.00019999,2]
[322672070,1713202252064,-9975.56,0.00019999,2]
[322672071,1713202252074,-9975.56,0.00019999,2]
[322672072,1713202252084,-9975.56,0.00019999,2]
[322672073,1713202252094,-9975.56,0.00019999,2]
[322672074,1713202252104,-9975.56,0.00019999,2]
[322672075,1713202252114,-9975.56,0.00019999,2]
[322672076,1713202252123,-9975.56,0.00019999,2]
[322672077,1713202252133,-9975.56,0.00019999,2]
[322672078,1713202252142,-9975.56,0.00019999,2]
[322672079,1713202252153,-9975.56,0.00019999,2]
[322672080,1713202252163,-9975.56,0.00019999,2]
[322672081,1713202252174,-9975.56,0.00019999,2]
[322672082,1713202252191,-9975.56,0.00019999,2]
[322672083,1713202252201,-9975.56,0.00019999,2]
[322672084,1713202252212,-9975.56,0.00019999,2]
[322672085,1713202252223,-9975.56,0.00019999,2]
[322672086,1713202252234,-9975.75852976,0.00019999,2]
[322672087,1713202252244,-21055.11,0.00019999,2]
[322672088,1713202252254,-21055.11,0.00019999,2]
[322672089,1713202252265,-21055.11,0.00019999,2]
[322672090,1713202252275,-21055.11,0.00019999,2]
[322672091,1713202252285,-21055.11,0.00019999,2]
[322672092,1713202252295,-21055.11,0.00019999,2]
[322672093,1713202252306,-21055.11,0.00019999,2]
[322672094,1713202252316,-21055.11,0.00019999,2]
[322672095,1713202252412,-21055.11,0.00019999,2]
[322672096,1713202252461,-21055.11,0.00019999,2]
[322672097,1713202252470,-21055.11,0.00019999,2]
[322672098,1713202252481,-8132.34600072,0.00019999,2]
[322672099,1713202253203,-406.7734298,0.00019999,2]
[322672100,1713202253215,-1250.45344498,0.00019999,2]
[322672101,1713202253226,-3839.97734858,0.00019999,2]
[322672102,1713202253238,-393.357144,0.00019999,2]
[322672103,1713202254753,-500.0,0.00019394,2]
[322672104,1713202254765,-500.0,0.00019396,2]
[322672105,1713202254776,-500.0,0.00019396,2]
[322672106,1713202254788,-94.6761521,0.00019397,2]
[322672107,1713202254801,-405.3238479,0.00019397,2]
[322672108,1713202254814,-1652.52,0.00019998,2]
[322672109,1713202254825,-3495.43,0.00019998,2]
[322672110,1713202254836,-3495.43,0.00019998,2]
[322672111,1713202254847,-594.8670181,0.00019998,2]
[322672112,1713202254883,-266.51640759,0.00019998,2]
[322672113,1713202254922,-434.00000005,0.00019998,2]
[322672114,1713202254948,-357.13657426,0.00019998,2]
[322672115,1713202254958,-109.90908252,0.00019998,2]
[322672116,1713202254971,-1034.06392184,0.00019998,2]
[322672117,1713202254984,-508.54699564,0.00019998,2]
[322672118,1713202254994,-132.09300436,0.00019998,2]
[322672119,1713202255085,-1836.89131388,0.00019998,2]
[322672120,1713202255238,-1199.99516352,0.00019998,2]
[322672121,1713202255250,-326.45051824,0.00019998,2]
[322672122,1713202255259,-1652.52,0.00019998,2]
[322672123,1713202255268,-3495.43,0.00019998,2]
[322672124,1713202255277,-500.0,0.00019998,2]
[322672125,1713202255287,-1652.52,0.00019998,2]
[322672126,1713202255296,-3495.43,0.00019998,2]
[322672127,1713202255306,-500.0,0.00019998,2]
[322672128,1713202255316,-1652.52,0.00019998,2]
[322672129,1713202255325,-3495.43,0.00019998,2]
[322672130,1713202255335,-322.72914766,0.00019998,2]
[322672131,1713202255345,-3495.63166961,0.00019998,2]
[322672132,1713202255354,-1652.52,0.00019998,2]
[322672133,1713202255364,-1652.58235823,0.00019998,2]
[322672134,1713202255374,-7032.20263192,0.00019999,2]
[322672135,1713202255383,-21055.11,0.00019999,2]
[322672136,1713202255392,-9230.82987567,0.00019999,2]
[322672137,1713202256864,-500.0,0.00019294,2]
[322672138,1713202256874,-429.12810717,0.00019294,2]
[322672139,1713202256887,-70.87189283,0.00019294,2]
[322672140,1713202256898,-500.0,0.00019295,2]
[322672141,1713202256908,-286.93075529,0.00019393,2]
[322672142,1713202256917,-7136.10617833,0.00019393,4]
[322672143,1713202256929,-5263.40892111,0.00019393,4]
[322672144,1713202256954,-1881.01284939,0.00019393,4]
[322672145,1713202256974,-832.54427182,0.00019393,4]
[322672146,1713202256984,-500.0,0.00019394,2]
[322672147,1713202256993,-4308.90982801,0.00019999,2]
[322672148,1713202257016,-7515.37029632,0.00019999,2]
[322672149,1713202257025,-8028.48370368,0.00019999,2]
[322672150,1713202257036,-6431.2,0.00019999,2]
[322672151,1713202257061,-6595.42629632,0.00019999,2]
[322672152,1713202257071,-3035.73411591,0.00019999,2]
[322672153,1713202372964,179.32,0.00024922,120]
[322672154,1713202373663,179.32,0.00028037,120]
[322673418,1713202857292,161.18,0.00026785,120]
[322673439,1713203403758,199.32,0.0002508,120]
[322673440,1713203404029,199.32,0.0002736,120]
[322673452,1713203431768,-623.68,0.00016322,2]
[322673453,1713203431778,-966.55573744,0.00016324,2]
[322673454,1713203431787,-2072.15640351,0.00016325,2]
[322673455,1713203431797,-150.0,0.00016328,2]
[322673456,1713203431807,-210.0,0.00017961,2]
[322673457,1713203431816,-250.0,0.00018205,2]
[322673458,1713203431825,-199.32,0.0001824,2]
[322673459,1713203431835,-262.19,0.0001824,2]
[322673460,1713203431844,-1000.0,0.00018419,2]
[322673461,1713203431853,-623.68,0.00018586,2]
[322673462,1713203431863,-179.32,0.00018692,2]
[322673463,1713203431873,-855.6464,0.0001909,2]
[322673464,1713203431882,-854.9439,0.0001909,2]
[322673465,1713203431892,-688.7415,0.0001909,2]
[322673466,1713203431901,-501.2920316,0.0001909,2]
[322673467,1713203431909,-164.99092066,0.0001909,2]
[322673468,1713203431919,-706.46365345,0.0001909,2]
[322673469,1713203431928,-251.7089,0.00019092,2]
[322673470,1713203431938,-1000.0,0.00019092,2]
[322673471,1713203431946,-815.8423,0.00019092,2]
[322673472,1713203431956,-499.99,0.00019092,2]
[322673473,1713203431965,-163.38647486,0.00019093,2]
[322673474,1713203431974,-5003.15365119,0.00019171,2]
[322673475,1713203431988,-351.76,0.0001918,3]
[322673476,1713203431997,-284.91820468,0.00019188,2]
[322673477,1713203432007,-1023.19556521,0.00019188,2]
[322673478,1713203432016,-155.0,0.00019188,2]
[322673479,1713203432025,-2031.5655536,0.00019188,2]
[322673480,1713203432035,-4139.30576999,0.00019189,2]
[322673481,1713203432044,-227943.43348238,0.0001919,2]
[322673482,1713203432192,-141979.422676,0.0001919,2]
[322673483,1713203432205,-292.408,0.0001919,2]
[322673484,1713203432216,-606.90853724,0.0001919,2]
[322673486,1713203432228,-1393.02296755,0.0001919,2]
[322673487,1713203432246,-2548.40605135,0.0001919,2]
[322673488,1713203432265,-1440.00014,0.0001919,2]
[322673489,1713203432276,-275.44162146,0.0001919,2]
[322673490,1713203432335,-496.701815,0.0001919,2]
[322673491,1713203432719,-108807.6506338,0.0001919,2]
[322673492,1713203433351,-300.38946163,0.0001919,2]
[322673493,1713203433362,-3185.1075,0.0001919,2]
[322673516,1713203437658,-15917.9742,0.0001919,2]
[322673536,1713203437792,-1319.04852,0.0001919,2]
[322673539,1713203437804,-3251.55806868,0.0001919,2]
[322673540,1713203437858,-762.55830381,0.0001919,2]
[322673541,1713203437901,-13344.577824,0.0001919,2]
[322673542,1713203437912,-21759.22735014,0.0001919,2]
[322673543,1713203437921,-6548.01848327,0.0001919,2]
[322673544,1713203437930,-161.50962951,0.00019191,2]
[322673545,1713203437957,-16715.76522484,0.00019191,2]
[322673546,1713203438020,-24939.33436021,0.00019191,2]
[322673547,1713203438030,-440.27096568,0.00019191,2]
[322673548,1713203438042,-753.33355977,0.00019191,2]
[322673550,1713203438053,-1246.14288204,0.00019191,2]
[322673552,1713203438064,-2547.63518844,0.00019191,2]
[322673554,1713203438076,-447.41610825,0.00019191,2]
[322673559,1713203438119,-10000.0,0.00019191,2]
[322673562,1713203438130,-14174.999992,0.00019191,2]
[322673564,1713203438141,-136937.42248151,0.00019191,2]
[322673566,1713203438154,-2789.23430514,0.00019191,2]
[322673673,1713203440726,-1068.63200009,0.00019191,2]
[322673675,1713203440742,-526.36517488,0.00019191,2]
[322673678,1713203440754,-1605.97334307,0.00019191,2]
[322673680,1713203440767,-482.23069938,0.00019191,2]
[322673682,1713203440779,-779.077358,0.00019191,2]
[322673684,1713203440790,-416.49,0.00019191,2]
[322673687,1713203440801,-1042.06217535,0.00019191,2]
[322673689,1713203440812,-8343.29016927,0.00019191,2]
[322673691,1713203440825,-352.96853907,0.00019191,2]
[322673693,1713203440836,-884.17560053,0.00019191,2]
[322673695,1713203440847,-391.83936246,0.00019191,2]
[322673698,1713203440859,-823.83536713,0.00019191,2]
[322673700,1713203440870,-1595.18045066,0.00019191,2]
[322673784,1713203444258,-816.0802,0.0001909,2]
[322673785,1713203444268,-56531.2657252,0.00019191,2]
[322673786,1713203444312,-489.66384003,0.00019191,2]
[322673787,1713203444343,-320.02,0.00019191,2]
[322673788,1713203444354,-1195.04718911,0.00019191,2]
[322673789,1713203444409,-1995.44967921,0.00019191,2]
[322673790,1713203444420,-534.85994547,0.00019191,2]
[322673791,1713203444431,-323.938653,0.00019191,2]
[322673792,1713203444442,-7610.19334065,0.00019191,2]
[322673793,1713203444454,-2232.52449129,0.00019191,2]
[322673802,1713203446524,-6372.53745325,0.00019191,2]
[322673803,1713203446588,-360.44824083,0.00019191,2]
[322673804,1713203446599,-502.13752266,0.00019191,2]
[322673805,1713203446616,-6546.012,0.00019191,2]
[322673806,1713203446628,-325.75343631,0.00019191,2]
[322673807,1713203446640,-601.93717688,0.00019191,2]
[322673808,1713203446651,-2543.644,0.00019191,2]
[322673809,1713203446709,-5981.05155202,0.00019191,2]
[322673810,1713203446723,-6357.14876308,0.00019191,2]
[322673811,1713203446735,-3720.00002,0.00019191,2]
[322673815,1713203870581,155.46,0.00024934,120]
[322673816,1713203871226,155.46,0.000272,120]
[322673818,1713204247133,158.78563688,0.00015996,2]
[322673821,1713204382877,163.42,0.00026567,120]
[322673822,1713204452104,150.0,0.00015854,2]
[322673823,1713204452130,150.0,0.00015854,2]
[322673824,1713204452152,150.0,0.00015854,2]
[322673825,1713204452175,125.5,0.00015854,2]
[322673844,1713204631915,-978.71731214,0.00016081,2]
[322673845,1713204631925,-206.54437025,0.00016082,2]
[322673846,1713204631935,-2177.19801245,0.00016082,2]
[322673847,1713204631944,-163.42,0.00017711,2]
[322673848,1713204631953,-250.0,0.00017715,2]
[322673849,1713204631963,-1703.54,0.00017716,2]
[322673851,1713204631972,-168.59,0.00017809,2]
[322673853,1713204631981,-500.0,0.00017885,2]
[322673855,1713204631991,-2030.08,0.00017944,2]
[322673857,1713204632001,-160.5,0.0001798,2]
[322673858,1713204632011,-150.99,0.00018118,2]
[322673859,1713204632024,-575.5,0.00018118,2]
[322673860,1713204632033,-155.46,0.00018133,2]
[322673861,1713204632042,-154.94,0.0001818,2]
[322673862,1713204632052,-154.94,0.00018211,2]
[322673863,1713204632063,-154.94,0.00018241,2]
[322673864,1713204632073,-5985.6,0.00018249,2]
[322673865,1713204632082,-499.99,0.00018249,2]
[322673866,1713204632092,-154.94,0.00018271,2]
[322673867,1713204632101,-150.0,0.000183,2]
[322673868,1713204632111,-167.0,0.00018301,2]
[322673869,1713204632121,-160.5,0.00018448,2]
[322673870,1713204632130,-684.33,0.00018678,2]
[322673871,1713204632141,-822.8,0.00018704,2]
[322673872,1713204632150,-256365.44666601,0.000189,3]
[322673873,1713204632182,-20614.79557624,0.000189,3]
[322673874,1713204632195,-397.87558405,0.000189,3]
[322673875,1713204632208,-628.62510197,0.000189,3]
[322673876,1713204632221,-854.70609405,0.000189,3]
[322673877,1713204632291,-615.77052,0.000189,3]
[322673878,1713204632304,-3198.95,0.000189,3]
[322673879,1713204632353,-280.07783697,0.000189,3]
[322673880,1713204632367,-496.12717844,0.000189,3]
[322673881,1713204632378,-466.71629191,0.000189,3]
[322673882,1713204632454,-445.3872842,0.000189,3]
[322673883,1713204632466,-1509.71825524,0.000189,3]
[322673884,1713204632518,-846.582,0.000189,3]
[322673885,1713204632530,-560.946,0.000189,3]
[322673891,1713204637907,-966.55573744,0.0001608,2]
[322673892,1713204637917,-2864.98772505,0.000189,3]
[322673902,1713204638017,-16717.23469989,0.000189,3]
[322673903,1713204638029,-412.90940515,0.000189,3]
[322673904,1713204638040,-705.16538413,0.000189,3]
[322673905,1713204638052,-3734.16551095,0.000189,3]
[322673906,1713204638063,-5994.33108,0.000189,3]
[322673907,1713204638077,-356.967728,0.000189,3]
[322673908,1713204638154,-4497.52000001,0.000189,3]
[322673909,1713204638165,-2268.25408316,0.000189,3]
[322673910,1713204638175,-731.82004816,0.000189,3]
[322673911,1713204638186,-4006.7037361,0.000189,3]
[322673912,1713204638260,-399.40539632,0.000189,3]
[322673913,1713204638309,-561.35630677,0.000189,3]
[322673928,1713204640371,-333.81892786,0.00018879,2]
[322673929,1713204640382,-117.34390058,0.00018879,2]
[322673930,1713204640392,-147.78469942,0.000189,3]
[322673931,1713204640404,-3547.16582188,0.000189,3]
[322673932,1713204640416,-33205.80003,0.000189,3]
[322673933,1713204640429,-525.85756743,0.000189,3]
[322673934,1713204640441,-607.21348402,0.000189,3]
[322673935,1713204640453,-349.62275878,0.000189,3]
[322673936,1713204640465,-9026.51047328,0.000189,3]
[322673937,1713204640478,-631.63945385,0.000189,3]
[322673938,1713204640492,-4906.01751077,0.000189,3]
[322673939,1713204640503,-1205.43411614,0.000189,3]
[322673940,1713204640521,-553.98949783,0.000189,3]
[322673941,1713204640533,-425.6559996,0.000189,3]
[322673942,1713204640545,-10342.82870139,0.000189,3]
[322673958,1713204643027,-331.43249997,0.000189,3]
[322673959,1713204643039,-20298.51026869,0.000189,3]
[322673960,1713204643095,-1485.58267253,0.000189,3]
[322673961,1713204643107,-1693.17395012,0.000189,3]
[322673962,1713204643118,-2139.49942241,0.000189,3]
[322673963,1713204643129,-639.85,0.000189,3]
[322673964,1713204643275,-481.2146,0.000189,3]
[322673965,1713204643286,-987.596933,0.000189,3]
[322673966,1713204643297,-238637.54536914,0.000189,3]
[322673967,1713204643306,-150.0,0.00018916,2]
[322673968,1713204643315,-160.5,0.00018917,2]
[322673969,1713204643327,-205.89797358,0.00018968,2]
[322673970,1713204643337,-373.12,0.00018968,3]
[322673971,1713204643346,-200.24439636,0.00018976,2]
[322673972,1713204643355,-2438.06025568,0.00018977,2]
[322673973,1713204643439,-688.38156469,0.00018977,2]
[322673986,1713204643666,-6038.26239604,0.00018977,2]
[322673991,1713204643679,-2972.22376971,0.00018977,2]
[322673994,1713204643690,-3819.80500195,0.00018977,2]
[322673999,1713204643720,-2186.37961417,0.00018977,2]
[322674001,1713204643732,-1310.2143984,0.00018977,2]
[322674047,1713204647336,-900.8999995,0.00018977,2]
[322674048,1713204647348,-9110.9070925,0.00018977,2]
[322674049,1713204647401,-1598.9,0.00018977,2]
[322674050,1713204647412,-31960.01602746,0.00018977,2]
[322674051,1713204647542,-2383.69524,0.00018977,2]
[322674055,1713204858265,225.4,0.00024856,120]
[322674056,1713204858639,225.4,0.00027116,120]
[322674058,1713205305016,150.0,0.00015908,2]
[322674059,1713205305036,150.0,0.00015908,2]
[322674060,1713205305057,285.85630677,0.00015908,2]
[322674061,1713205305080,746.39200565,0.00015908,2]
[322674062,1713205387252,169.89,0.00026765,120]
[322674064,1713205605374,150.0,0.00015876,2]
[322674065,1713205605395,150.0,0.00015876,2]
[322674066,1713205605420,150.0,0.00015876,2]
[322674067,1713205605442,119.05,0.00015876,2]
[322674106,1713205832051,-966.55573744,0.00017701,2]
[322674108,1713205832060,-164.62697852,0.00017702,2]
[322674110,1713205832071,-31.07952196,0.00017802,2]
[322674111,1713205832113,-468.92047804,0.00017802,2]
[322674112,1713205832122,-479.56,0.00017802,2]
[322674113,1713205832132,-169.89,0.00017843,2]
[322674114,1713205832141,-756.73696932,0.0001785,2]
[322674115,1713205832153,-243.26303068,0.0001785,2]
[322674116,1713205832162,-391.63122932,0.00017874,2]
[322674117,1713205832173,-2213.91868258,0.00017874,2]
[322674118,1713205832185,-724.7000881,0.00017874,2]
[322674119,1713205832194,-225.4,0.00018077,2]
[322674120,1713205832203,-569.05,0.0001814,2]
[322674121,1713205832211,-517.28,0.000184,2]
[322674122,1713205832220,-150.0,0.000184,2]
[322674123,1713205832230,-150.0,0.000184,2]
[322674124,1713205832239,-150.0,0.000184,2]
[322674125,1713205832248,-347.16,0.000184,2]
[322674126,1713205832257,-150.0,0.000184,2]
[322674127,1713205832266,-499.99,0.000184,2]
[322674128,1713205832276,-370.4599123,0.00018593,2]
[322674129,1713205832287,-2498.078602,0.00018593,2]
[322674130,1713205832298,-342.93404351,0.00018593,2]
[322674131,1713205832368,-1047.42676983,0.00018593,2]
[322674132,1713205832380,-507.43868763,0.00018593,2]
[322674133,1713205832453,-1816.84343031,0.00018593,2]
[322674137,1713205832499,-255.736569,0.00018593,2]
[322674139,1713205832510,-3086.40000001,0.00018593,2]
[322674158,1713205832683,-8708.92946294,0.00018593,2]
[322674161,1713205832714,-347.17012253,0.00018593,2]
[322674162,1713205832725,-544.37674792,0.00018593,2]
[322674163,1713205832736,-3121.3925,0.00018593,2]
[322674164,1713205832747,-17351.48105202,0.00018593,2]
[322674165,1713205832757,-901.91029447,0.00018594,2]
[322674166,1713205832767,-318.60736221,0.00018595,2]
[322674167,1713205832777,-402.35928468,0.00018595,2]
[322674168,1713205832786,-300.0,0.000186,2]
[322674169,1713205832795,-12058.64200663,0.00018685,2]
[322674170,1713205832807,-2444.35799337,0.00018685,2]
[322674171,1713205832820,-211.28706663,0.00018692,2]
[322674201,1713205838110,-24000.0003528,0.00018692,2]
[322674215,1713205838185,-19170.03601726,0.00018692,2]
[322674226,1713205838350,-6306.3,0.00018692,2]
[322674230,1713205838381,-312.37656331,0.00018692,2]
[322674232,1713205838390,-31273.37183669,0.00018692,2]
[322674234,1713205838405,-273.76000002,0.00018692,2]
[322674237,1713205838416,-20607.32000431,0.00018692,2]
[322674239,1713205838428,-330.25332123,0.00018692,2]
[322674241,1713205838439,-673.47706815,0.00018692,2]
[322674243,1713205838451,-724.48570215,0.00018692,2]
[322674257,1713205838541,-409.31136205,0.00018692,2]
[322674260,1713205838552,-2884.7180684,0.00018692,2]
[322674289,1713205840401,-350.96854369,0.00018692,2]
[322674290,1713205840413,-2610.98205922,0.00018692,2]
[322674291,1713205840425,-4319.9493439,0.00018692,2]
[322674292,1713205840437,-4395.75536144,0.00018692,2]
[322674293,1713205840449,-2241.47785636,0.00018692,2]
[322674294,1713205840460,-413.7309808,0.00018692,2]
[322674295,1713205840472,-312.80998799,0.00018692,2]
[322674296,1713205840490,-18177.6285036,0.00018692,2]
[322674297,1713205840500,-45437.67802009,0.00018694,2]
[322674298,1713205840511,-6040.76460013,0.00018694,2]
[322674299,1713205840524,-2942.90026021,0.00018694,2]
[322674300,1713205840537,-687.549999,0.00018694,2]
[322674301,1713205840550,-771.73,0.00018694,2]